Cogmind - Beta 16 *** ADVENTURER MODE // 2025.12.18 @ 18:50:19 Player: Shintak Result: Destroyed by EX-DEC with AWS/EX-DEC Performance ------------- Evolutions (0) 0 Regions Visited (3) 600 Robots Destroyed (16) 80 Value Destroyed (422) 422 Prototype IDs (0) 0 Alien Tech Used (0) 0 Bonus (59) 59 TOTAL SCORE: 1161 Bonus ------- Follower Combat Kills 120 Friendly Fire -61 Cogmind --------- Core Integrity 0/250 Matter 294/400 Energy 90/100 System Corruption 5% Temperature Cool (0) Movement Core (50) Location -10/Exiles Parts ------- > --- POWER (1) -------- (None) > --- PROPULSION (2) --- (None) > --- UTILITY (2) ------ Improved Heat Sink Medium Matter Pod > --- WEAPON (2) ------- (None) > --- INVENTORY (5) ---- Light Nuclear Core Reinforced Deuterium Engine Fission Core Fission Core Particle Gun Peak State ------------ > --- POWER ------------ Light Nuclear Core > --- PROPULSION ------- Aluminum Leg Aluminum Leg > --- UTILITY ---------- Improved Heat Sink Medium Matter Pod > --- WEAPON ----------- Particle Gun Light Assault Rifle > --- INVENTORY -------- Ion Engine Light Nuclear Core Reinforced Deuterium Engine Aluminum Leg Grenade Launcher [Rating: 13] Favorites ----------- Power Light Ion Engine Engine Light Ion Engine Power Core Light Nuclear Core Propulsion Aluminum Leg Leg Aluminum Leg Utility Medium Matter Pod Device Structural Scanner Storage Medium Matter Pod Weapon Light Assault Rifle Energy Gun Particle Gun Energy Cannon Light EM Pulse Cannon Ballistic Gun Light Assault Rifle Launcher Grenade Launcher Build | -11 -10 -10 -10 ------- Run | Yrd Mat Min Exi Slots Evolved . | . . . . Power . | . . . . Propulsion . | . . . . Utility . | . . . . Weapon . | . . . . Parts Attached 24 | 5 5 14 . Power 6 | 1 . 5 . Engine 4 | 1 . 3 . Core 2 | . . 2 . Reactor . | . . . . Propulsion 7 | 2 1 4 . Treads . | . . . . Leg 7 | 2 1 4 . Wheel . | . . . . Hover . | . . . . Flight . | . . . . Utility 4 | . 2 2 . Device 2 | . 1 1 . Storage 2 | . 1 1 . Processor . | . . . . Hackware . | . . . . Protection . | . . . . Artifact . | . . . . Weapon 7 | 2 2 3 . Energy Gun 3 | 1 . 2 . Energy Cannon 1 | . 1 . . Ballistic Gun 2 | 1 . 1 . Ballistic Cannon . | . . . . Launcher 1 | . 1 . . Special Weapon . | . . . . Impact Weapon . | . . . . Slashing Weapon . | . . . . Piercing Weapon . | . . . . Special Melee Weapon . | . . . . Unidentified Prototypes . | . . . . Corrupted Parts 1 | . . 1 . System Corruption 3 | . . 3 . Parts Lost 1 | . . . 1 Power . | . . . . Propulsion . | . . . . Utility . | . . . . Weapon 1 | . . . 1 Highest Loss Streak 1 | . . . 1 To Critical Strikes . | . . . . Average Backups 4 | 2 4 4 5 Power 1 | . 1 1 3 Propulsion . | 1 . . . Utility . | . . 1 . Weapon 1 | 1 2 1 1 Tool/Special . | . . . . Unused Backups 20 | 2 5 8 5 Power 8 | . 1 3 4 Propulsion 3 | 2 . . 1 Utility 2 | . . 2 . Weapon 7 | . 4 3 . Tool/Special . | . . . . Average Slot Usage (%) 92 | . 79 100 97 Engine 7 | . 14 6 . Core 6 | . . 7 13 Leg 27 | . 28 28 26 Device 12 | . 8 14 14 Storage 9 | . . 14 14 Energy Gun 6 | . 2 12 2 Energy Cannon 1 | . 2 1 . Ballistic Gun 14 | . 14 14 14 Launcher 5 | . 7 . 10 Peak Build Rating 13 | 5 8 12 13 Average Rating 8 | 3 5 9 11 On Entrance 6 | . 5 8 12 Avg Prop Armor Cover (%) . | . . . . Naked Turns . | . . . . Heaviest Build 12 | 7 12 12 12 Greatest Support 20 | 20 20 20 20 Greatest Overweight (x) 1 | . . . 1 Average Overweight (x) . | . . . . Largest Inventory Capacity 5 | 5 5 5 5 Average Capacity 5 | 5 5 5 5 Most Carried 5 | 5 5 5 5 Average Carried 4 | 3 4 4 4 Final Capacity 5 | 5 5 5 5 Final Carried 5 | 4 5 5 5 Class Distribution -------------------- 57% | Scavenger-Mutant 42% | Mutant Dominant Class ---------------- Mutant | -10/Materials Scavenger-Mutant | -10/Mines Scavenger-Mutant | -10/Exiles Resources | -11 -10 -10 -10 ----------- Run | Yrd Mat Min Exi Matter Collected 725 | 256 115 354 . Remotely . | . . . . Salvage Created 402 | 48 185 152 17 Parts 27 | 3 9 13 2 Haulers Intercepted . | . . . . Recyclers Shooed . | . . . . Parts Field Recycled . | . . . . Retrieved Matter . | . . . . Parts Self-Destructed . | . . . . Prevented . | . . . . Parts Restored . | . . . . Kills | -11 -10 -10 -10 ------- Run | Yrd Mat Min Exi Combat Hostiles Destroyed 11 | 1 4 6 . Guns 5 | 1 1 3 . Cannons 1 | . . 1 . AOE 5 | . 3 2 . Classes Destroyed 5 | 1 2 1 1 Builder 3 | . 3 . . Watcher 1 | . 1 . . Swarmer 3 | . . 3 . Grunt 8 | 1 4 3 . Zionite 1 | . . . 1 Best Kill Streak 5 | 1 5 5 . Combat Bots Only 5 | 1 2 5 . Max Kills in Single Turn 2 | 1 2 2 1 Gunslinging . | . . . . Exploded 2 | . 1 2 . Melee . | . . . . Uniques/NPCs Destroyed . | . . . . Combat | -11 -10 -10 -10 -------- Run | Yrd Mat Min Exi Hostile Shots Fired 72 | 5 18 17 32 Missed 22 | 2 8 5 7 Hits 50 | 3 10 12 25 Melee 6 | . . . 6 Projectile 44 | 3 10 12 19 Critical Strikes 4 | . . . 4 Part Disruptions 1 | . . . 1 Damage Taken 687 | 25 99 137 426 Core 250 | . . 42 208 Absorbed by Shields . | . . . . Ignored by Resistances 197 | 7 31 41 118 Core Remaining (%) 100 | 100 . . . Volleys Fired 33 | 2 17 11 3 Largest 2 | 2 2 2 2 Hottest 85 | 70 50 85 50 Shots Fired 53 | 4 22 22 5 Gun 41 | 4 17 17 3 Cannon 5 | . . 5 . Launcher 7 | . 5 . 2 Special . | . . . . Kinetic 33 | 2 17 11 3 Thermal 8 | 2 . 6 . Explosive 7 | . 5 . 2 Electromagnetic 5 | . . 5 . Robot Hit Streak 11 | 3 11 7 1 Robot Miss Streak 3 | . 2 3 1 Penetration Max . | . . . . Secondary Targets 1 | . . 1 . Max Gunslinging Chain 1 | . . 1 . Shots Hit Robots 28 | 3 12 12 1 Core Hits 30 | 2 17 9 2 Critical Kills . | . . . . Critical Parts Destroyed . | . . . . Critical Strikes . | . . . . Melee Attacks . | . . . . Impact . | . . . . Slashing . | . . . . Piercing . | . . . . Sneak Attacks . | . . . . Combat Hostiles . | . . . . Follow-up Attacks . | . . . . Damage Inflicted 954 | 39 526 287 102 Guns 251 | 39 124 80 8 Cannons 87 | . . 87 . Explosions 616 | . 402 120 94 Melee . | . . . . Ramming . | . . . . Kinetic 214 | 15 124 67 8 Thermal 157 | 24 . 133 . Explosive 496 | . 402 . 94 Electromagnetic 87 | . . 87 . Impact . | . . . . Slashing . | . . . . Piercing . | . . . . Highest Corruption 5 | . . 3 5 Average Corruption 3 | . . 3 3 Corruption Purged . | . . . . Corruption Blocked . | . . . . Effects 8 | . . 3 5 Message Errors 2 | . . . 2 Matter Fused 1 | . . . 1 Heat Flow Errors 2 | . . 2 . Energy Discharges 1 | . . . 1 Data Loss (minor) 1 | . . 1 . Misfires 1 | . . . 1 Overload Shots . | . . . . Overflow Damage 34 | . . 34 . Projectiles . | . . . . Explosions 34 | . . 34 . Melee . | . . . . Knockbacks . | . . . . Impact . | . . . . Kinetic . | . . . . Secondary . | . . . . Self-Inflicted Damage 66 | . . 20 46 Shots 3 | . . 1 2 Rammed . | . . . . Targets Rammed . | . . . . Kicked . | . . . . Crushed . | . . . . Highest Temperature 175 | 18 2 175 . Average Temperature 60 | 10 2 66 . Received Heat Transfer 162 | 18 72 72 . Siege Activations . | . . . . Martial Activations . | . . . . Shielding Activations . | . . . . Robots Disrupted . | . . . . Combat Hostiles . | . . . . Robots Corrupted . | . . . . Combat Hostiles . | . . . . Parts Fried . | . . . . Impact Corruptions . | . . . . Robots Melted . | . . . . Combat Hostiles . | . . . . Parts Melted . | . . . . Heat Transferred 261 | 74 . 187 . Parts Sabotaged . | . . . . Parts Stolen . | . . . . Parts Stripped . | . . . . Power Chain Reactions . | . . . . Alert | -11 -10 -10 -10 ------- Run | Yrd Mat Min Exi Maximum Alert Level . | . . . . Low Security (%) 100 | 100 100 100 . Level 1 . | . . . . Level 2 . | . . . . Level 3 . | . . . . Level 4 . | . . . . Level 5 . | . . . . High Security . | . . . . Max Security . | . . . . Peak Influence 154 | 20 121 154 . Initial 16 | . . 16 . Average 68 | 1 56 101 . Influence Increases 475 | 20 180 275 . Destroy 0b10 Robot/C 300 | 20 80 200 . Destroy 0b10 Robot/NC 20 | . 20 . . Destroy Leader 72 | . 22 50 . Allied During Kill 7 | . . 7 . Successful Hack 12 | . 12 . . Disable Machine 45 | . 36 9 . Destroy Structure 19 | . 10 9 . Influence Decreases 475 | 20 129 255 71 Entered New Map 106 | . . 35 71 Time Decay 349 | 20 129 200 . Lost Ally 20 | . . 20 . Squads Dispatched 1 | . . 1 . Investigation 1 | . . 1 . Extermination . | . . . . Reinforcement . | . . . . Assault . | . . . . Garrison . | . . . . Intercept . | . . . . Searches Triggered . | . . . . Construction Impeded . | . . . . Haulers Reinforced . | . . . . Active Scanning Responses . | . . . . Cargo Convoy Interrupts . | . . . . Stealth | -11 -10 -10 -10 --------- Run | Yrd Mat Min Exi Distress Signals . | . . . . Communications Jammed . | . . . . Distress Signals . | . . . . Times Spotted 21 | 1 5 8 7 Peak Tracking Total 15 | 1 2 3 15 Tactical Retreats . | . . . . Traps | -11 -10 -10 -10 ------- Run | Yrd Mat Min Exi Traps Triggered . | . . . . Indirectly . | . . . . Trap Hack Attempts . | . . . . Triggered . | . . . . Disarmed . | . . . . Reprogrammed . | . . . . Reused . | . . . . Traps Extracted . | . . . . Installed . | . . . . Triggered . | . . . . Machines | -11 -10 -10 -10 ---------- Run | Yrd Mat Min Exi Machines Disabled 8 | . 4 1 3 Max in Single Turn 3 | . 2 1 3 Machines Repaired . | . . . . Machines Dismantled . | . . . . Machines Sabotaged . | . . . . Overloaded Fab Kills . | . . . . Hacking | -11 -10 -10 -10 --------- Run | Yrd Mat Min Exi Machines Accessed 3 | . 2 1 . Terminals 3 | . 2 1 . Fabricators . | . . . . Repair Stations . | . . . . Recycling Units . | . . . . Scanalyzers . | . . . . Garrison Access . | . . . . Total Hacks 5 | . 2 3 . Successful 3 | . 2 1 . Failed 2 | . . 2 . Catastrophic . | . . . . Database Lockouts . | . . . . Manual . | . . . . Terminals 5 | . 2 3 . Fabricators . | . . . . Repair Stations . | . . . . Recycling Units . | . . . . Scanalyzers . | . . . . Garrison Access . | . . . . Terminal Hacks 3 | . 2 1 . Record 2 | . 1 1 . Zone Layout 1 | . 1 . . Fabricator Hacks . | . . . . Repair Station Hacks . | . . . . Recycling Unit Hacks . | . . . . Scanalyzer . | . . . . Garrison Access Hacks . | . . . . Unauthorized Hacks . | . . . . Terminals . | . . . . Fabricators . | . . . . Repair Stations . | . . . . Recycling Units . | . . . . Scanalyzers . | . . . . Garrison Access . | . . . . Data Cores Recovered . | . . . . Used . | . . . . Hacking Detections 3 | . 2 1 . Full Trace Events 1 | . . 1 . Feedback Events . | . . . . Feedback Blocked . | . . . . Robot Schematics Acquired . | . . . . Robots Built . | . . . . Authchips . | . . . . Time . | . . . . Total Robot Build Rating . | . . . . Part Schematics Acquired . | . . . . Parts Built . | . . . . Authchips . | . . . . Time . | . . . . Total Part Build Rating . | . . . . Part Studies Acquired . | . . . . Parts Repaired . | . . . . Time . | . . . . Parts Recycled . | . . . . Recycled Matter . | . . . . Retrieved Matter . | . . . . Retrieved Components . | . . . . Parts Scanalyzed . | . . . . Part Schematics Acquired . | . . . . Parts Damaged . | . . . . Bothacking | -11 -10 -10 -10 ------------ Run | Yrd Mat Min Exi Used RIF Installer . | . . . . Robots Hacked . | . . . . Non-combat . | . . . . Combat . | . . . . Robot Hacks Applied . | . . . . Relay Couplers Released . | . . . . Fabnet Peak Effective % . | . . . . Robots Rewired . | . . . . Allies Hacked . | . . . . Hacks Repelled . | . . . . Allies | -11 -10 -10 -10 -------- Run | Yrd Mat Min Exi Total Allies 2 | . . 2 . Largest Group 2 | . . 2 1 Highest-Rated Group 49 | . . 49 31 Highest-Rated Ally 31 | . . 31 31 Total Orders . | . . . . Ally Attacks 12 | . . 12 . Total Damage 257 | . . 257 . Kills 4 | . . 4 . Allies Corrupted . | . . . . Allies Melted . | . . . . Intel | -11 -10 -10 -10 ------- Run | Yrd Mat Min Exi Active Infowar (turns) 558 | . 206 352 . Structural 558 | . 206 352 . Robot Analysis Total . | . . . . Derelict Logs Recovered 1 | . . 1 . Drone Launches . | . . . . Drone Recoveries . | . . . . Exploration | -11 -10 -10 -10 ------------- Run | Yrd Mat Min Exi Turns Passed 1120 | 142 315 415 248 Spaces Moved 708 | 112 203 205 188 Core 25 | 24 . . 1 Treads . | . . . . Legs 683 | 88 203 205 187 Wheels . | . . . . Hover . | . . . . Flight . | . . . . Fastest Speed 50 | 50 120 120 100 Average Speed 117 | 105 120 120 119 Slowest Speed 120 | 120 120 120 120 Overloaded Moves . | . . . . Propulsion Burnouts . | . . . . Robots Hopped . | . . . . Potential Cave-ins . | . . . . Cave-ins Triggered . | . . . . Exploration Rate (%) 29 | 5 30 29 54 Regions Visited 3 Branch Regions 2 Pre-discovered Areas . | . . . . Known Exits Taken . | . . . . Unknown Exits Taken 3 | 1 1 1 . Scrap Searched . | . . . . Spaces Dug . | . . . . Terrain Destroyed 36 | . 16 9 11 Melee . | . . . . Projectile . | . . . . AOE 36 | . 16 9 11 Terrain Rammed . | . . . . Walls Destroyed . | . . . . Machines Disabled . | . . . . Actions | -11 -10 -10 -10 --------- Run | Yrd Mat Min Exi Total 952 | 133 256 355 208 Wait 88 | 2 11 71 4 Move 705 | 111 202 204 188 Hop . | . . . . Pick Up 47 | 11 11 20 5 Fast Attach . | . . . . Attach 9 | 5 4 . . Detach 1 | . 1 . . Swap 29 | . 2 25 2 Drop 39 | 2 8 24 5 Fire 33 | 2 17 11 3 Melee . | . . . . Ram . | . . . . Kick . | . . . . Crush . | . . . . Escape Stasis . | . . . . Rewire 1 | . . . 1 Trap . | . . . . Miscellaneous . | . . . . Route ------- -11/Scrapyard -10/Materials -10/Mines (discovered 3 exits: [*Mat] / [*Exi] / Sub) -10/Exiles (discovered 1 exit: [*Min]) History --------- Turn | Location | Event 2 | -11/Scrapyard | Met Revision 17 99 | -11/Scrapyard | Discovered new exit (range 8) 143 | -11/Scrapyard | Entered Materials 311 | -10/Materials | Build established: Mutant 423 | -10/Materials | Discovered new exit (range 15) 458 | -10/Materials | Entered Mines 499 | -10/Mines | Met a Derelict bent on vengeance 630 | -10/Mines | Discovered new exit (range 15) 702 | -10/Mines | Discovered new exit (range 12) 800 | -10/Mines | Build established: Scavenger-Mutant 846 | -10/Mines | Identified exit to Subcaves 863 | -10/Mines | Deemed a non-threat by the Exiles lab entrance 873 | -10/Mines | Entered Exiles 873 | -10/Exiles | Accompanied by 1 ally 903 | -10/Exiles | Led the pair of lost Derelicts to a safe place 925 | -10/Exiles | Discovered new exit (range 15) 956 | -10/Exiles | Met 8R-AWN 974 | -10/Exiles | Met EX-HEX 1035 | -10/Exiles | Met EX-DEC 1085 | -10/Exiles | Visited The Gauntlet 1097 | -10/Exiles | Attacked by the Exiles 1119 | -10/Exiles | Core integrity fell below 50% 1120 | -10/Exiles | Core integrity fell below 20% 1121 | -10/Exiles | Destroyed by EX-DEC with AWS/EX-DEC Last Messages --------------- J5-HVA destroyed. [Achievement: Backstab] Machine disabled. Testing Chamber Shield damaged. Testing Apparatus damaged. EXILES: Hostile robot within lab perimeter. Defensive protocols time, folks! Grenade Launcher destroyed. Aluminum Leg severed. System corrupted: Energy discharge (-64). W1-DM0 destroyed. Ion Engine severed. EX-BIN: "I just want to science!" Overweight warning: You are carrying more than your current propulsion can efficiently support, which slows movement; see status page ('s') or the top of the parts list for the specific mass vs. support values. Lgt. Assault Rifle severed. [Achievement: First Step to Greatness] Map ----- +----------------------------------------------------+ | ???????????##""" """##?????????##""" | | ???????????#""" """##???????????#"""" | | ???????????#""" ""#???????????##"" | | ???????????#"" ###?####??####"""" | | ???????????#""" ## #??#""" | | ???????????#"" """" | | ???????????##"" | | ????????????#"""" | | ????????????## | | ?????????????#" " "" | | ?????????????#"""" ""## ##""" " " | | ?????????????#"" ""##?# ?#####""" " | | ?????????????#" """"##??#???????###""" | | ?????????????#""" a """#?????????????#### | | ?????????????## caz ""#?????????????????? | | ??????????????#"" ca"""##?????????????????? | | ??????????????##""" ##??????????????????? | | ???????????????##"""" ##???????????????????? | | ????????????????### #????????????????????? | | ??????????????????##### ##????????????????????? | | ??????????????????????## #?????????????????????? | | ???????????????????????# #?????????????????????? | | ???????????????????????# #?????????????????????? | | ???????????????????????# #?????????????????????? | | ???????????????????????# ##????????????????????? | | ??????????????????????##[@= #????????????????????? | | ??????????????????????# =z #????????????????????? | | ??????????????????????##= z #????????????????????? | | ??????????????????????# % #????????????????????? | | ??????????????????????# ! ##????????????????????? | | ??????????????#"""###### ########??????????????? | | ?????????????"" """"""c """""""#?"""??????????? | | ????????????"" "#"" ""?????????? | | ??????????? " ""?????????? | | ??????????? " " "?????????? | | ??????????? / " """?????????? | | ???????????? "" %= #"" ""?????????? | | ????????????"" " """" ""#??????????????? | | ?????????????##"""########" ##??????????????? | | ????????????????????????"" ""###???????????????? | | ???????????????????????#"" ""#?????????????????? | | ???????????????????????#"""""""#?????????????????? | | ???????????????????????#"" """"#?????????????????? | | ???????????????????????#"""""""??????????????????? | | ?????????????????????????#####???????????????????? | | ?????????????????????????????????????????????????? | | ?????????????????????????????????????????????????? | | ?????????????????????????????????????????????????? | | ?????????????????????????????????????????????????? | | | +----------------------------------------------------+ Best States ------------- Heat Dissipation 39 Energy Generation 14 Energy Capacity 250 Matter Stores 367 Matter Capacity 400 Sight Range 16 Terrain Scan Density 10 Resistance: KI 20 Resistance: TH 20 Resistance: EX 20 Resistance: EM 20 Resistance: I 20 Resistance: S 20 Resistance: P 20 Evasion (%) 55 Offensive Hacking 10 Item Schematics ----------------- None Robot Schematics ------------------ None Fabricated ------------ Nothing Repaired ---------- Nothing Studied --------- None Alien Tech Used ----------------- None Achievements -------------- A Problem For Future Me Backstab Crack Shot First Step to Greatness Maybe Next Time I'll Detach My Launcher My Bad One Hack Too Far Organ Harvest Challenges ------------ None Game ------ Seed SkeletonPhasingSpiker Manual? 0 Play Time 00:25:38 Cumulative 0.4 hours Start 2025.12.18 @ 18:23:05 End 2025.12.18 @ 18:50:19 Sessions 1 Manual Loads 0 Difficulty Adventurer Special Mode None Game No. 1 Rogue 0 Adventurer 1 Explorer 0 Win Type - Total 0 Types 0/0/0/0/0/0/0/0/0/0 Lore% 0 Gallery% 1 Achievement% 1 Wizard Run 0 Options --------- Layout 1 ASCII 0 Keyboard 0 Movement Numpad Keybinds 0 Fullscreen 1 Font 24/Tallcaps Map View 50x35 Zoom Use 0% Tactical HUD 0 Map Filters NONE Filters NONE Steam 1 RUN: 0ab09f7b-853c-454b-b005-dab1e1aaefc7